[Event "Titled Tuesday Blitz June 07 Late 2022"]
[White "Holt, Conrad"]
[Black "Jobava, Baadur"]
[WhiteFideId "2034387"]
[BlackFideId "13601520"]
[WhiteElo "2586"]
[BlackElo "2617"]
[Result "1-0"]
[Round "11"]
[TimeControl "180+1"]
[Date "2022.06.07"]
[WhiteClock "0:00:20"]
[BlackClock "0:00:34"]

1. d4 {[%clk 0:02:58]}  d5 {[%clk 0:02:59]} 2. c4 {[%clk 0:02:58]}  c6 {[%clk 0:03:00]} 3. Nc3 {[%clk 0:02:56]}  Nf6 {[%clk 0:02:52]} 4. Nf3 {[%clk 0:02:54]}  dxc4 {[%clk 0:02:51]} 5. a4 {[%clk 0:02:52]}  Bf5 {[%clk 0:02:51]} 6. Ne5 {[%clk 0:02:49]}  Nbd7 {[%clk 0:02:51]} 7. Nxc4 {[%clk 0:02:46]}  Qc7 {[%clk 0:02:51]} 8. g3 {[%clk 0:02:40]}  Rd8 {[%clk 0:02:50]} 9. Bg2 {[%clk 0:02:38]}  e5 {[%clk 0:02:50]} 10. O-O {[%clk 0:02:37]}  Bb4 {[%clk 0:02:45]} 11. Qb3 {[%clk 0:02:35]}  a5 {[%clk 0:02:43]} 12. Na2 {[%clk 0:02:14]}  Be7 {[%clk 0:02:34]} 13. Bd2 {[%clk 0:02:08]}  Be6 {[%clk 0:02:33]} 14. Qc2 {[%clk 0:01:53]}  Bxc4 {[%clk 0:02:28]} 15. Qxc4 {[%clk 0:01:53]}  O-O {[%clk 0:02:29]} 16. dxe5 {[%clk 0:01:48]}  Nxe5 {[%clk 0:02:29]} 17. Qc3 {[%clk 0:01:46]}  Nd5 {[%clk 0:02:26]} 18. Qb3 {[%clk 0:01:39]}  Nf6 {[%clk 0:02:17]} 19. Rad1 {[%clk 0:01:36]}  h6 {[%clk 0:02:14]} 20. Qc3 {[%clk 0:01:28]}  Nd5 {[%clk 0:02:00]} 21. Qb3 {[%clk 0:01:21]}  Nf6 {[%clk 0:01:59]} 22. Bf4 {[%clk 0:01:14]}  g5 {[%clk 0:01:58]} 23. Be3 {[%clk 0:01:13]}  Rxd1 {[%clk 0:01:56]} 24. Rxd1 {[%clk 0:01:09]}  Rd8 {[%clk 0:01:57]} 25. Rc1 {[%clk 0:01:09]}  Nfd7 {[%clk 0:01:52]} 26. Bh3 {[%clk 0:01:06]}  Bf6 {[%clk 0:01:46]} 27. Bf5 {[%clk 0:01:00]}  Kg7 {[%clk 0:01:46]} 28. Nc3 {[%clk 0:00:58]}  Qd6 {[%clk 0:01:39]} 29. Ne4 {[%clk 0:00:57]}  Qb4 {[%clk 0:01:38]} 30. Qc2 {[%clk 0:00:55]}  Re8 {[%clk 0:01:32]} 31. Bd2 {[%clk 0:00:54]}  Qb6 {[%clk 0:01:31]} 32. Bc3 {[%clk 0:00:53]}  Qc7 {[%clk 0:01:12]} 33. Rd1 {[%clk 0:00:51]}  Re7 {[%clk 0:00:50]} 34. Bxd7 {[%clk 0:00:21]}  Nxd7 {[%clk 0:00:34]} 35. Rxd7 {[%clk 0:00:20]}  Rxd7 {[%clk 0:00:34]} 36. Nxf6 {[%clk 0:00:20]} 1-0


[Site "https://www.chess.com"]

[Event "Titled Tuesday Blitz June 07 Late 2022"]
[White "Ivanisevic, Ivan"]
[Black "Gurevich, Dmitry"]
[WhiteFideId "912417"]
[BlackFideId "2000407"]
[WhiteElo "2535"]
[BlackElo "2506"]
[Result "1-0"]
[Round "11"]
[TimeControl "180+1"]
[Date "2022.06.07"]
[WhiteClock "0:00:59"]
[BlackClock "0:00:02"]

1. b3 {[%clk 0:02:57]}  d5 {[%clk 0:02:59]} 2. Bb2 {[%clk 0:02:57]}  c5 {[%clk 0:02:59]} 3. e3 {[%clk 0:02:55]}  a6 {[%clk 0:02:58]} 4. Nf3 {[%clk 0:02:55]}  Nc6 {[%clk 0:02:58]} 5. d4 {[%clk 0:02:55]}  Bg4 {[%clk 0:02:57]} 6. dxc5 {[%clk 0:02:54]}  e6 {[%clk 0:02:55]} 7. a3 {[%clk 0:02:48]}  a5 {[%clk 0:02:50]} 8. Bb5 {[%clk 0:02:38]}  Nf6 {[%clk 0:02:47]} 9. b4 {[%clk 0:02:37]}  axb4 {[%clk 0:02:44]} 10. axb4 {[%clk 0:02:36]}  Rxa1 {[%clk 0:02:44]} 11. Bxa1 {[%clk 0:02:37]}  Be7 {[%clk 0:02:43]} 12. Qd4 {[%clk 0:02:27]}  Bxf3 {[%clk 0:02:31]} 13. gxf3 {[%clk 0:02:22]}  O-O {[%clk 0:02:29]} 14. Bxc6 {[%clk 0:02:21]}  bxc6 {[%clk 0:02:28]} 15. Rg1 {[%clk 0:02:22]}  Qa8 {[%clk 0:02:22]} 16. Nd2 {[%clk 0:02:14]}  Qa2 {[%clk 0:02:14]} 17. Kd1 {[%clk 0:02:06]}  Ra8 {[%clk 0:02:11]} 18. Bc3 {[%clk 0:02:03]}  Kf8 {[%clk 0:01:56]} 19. Nb3 {[%clk 0:01:55]}  Qb1+ {[%clk 0:01:51]} 20. Nc1 {[%clk 0:01:54]}  Ra2 {[%clk 0:01:32]} 21. Qd3 {[%clk 0:01:53]}  Ne8 {[%clk 0:01:20]} 22. Kd2 {[%clk 0:01:47]}  Ra7 {[%clk 0:01:03]} 23. Ne2 {[%clk 0:01:44]}  Qa2 {[%clk 0:00:59]} 24. Ra1 {[%clk 0:01:44]}  Qxa1 {[%clk 0:00:59]} 25. Bxa1 {[%clk 0:01:45]}  Rxa1 {[%clk 0:00:58]} 26. Qxh7 {[%clk 0:01:44]}  Bf6 {[%clk 0:00:54]} 27. Nd4 {[%clk 0:01:43]}  Bxd4 {[%clk 0:00:38]} 28. exd4 {[%clk 0:01:44]}  Ke7 {[%clk 0:00:36]} 29. Qh4+ {[%clk 0:01:42]}  Kd7 {[%clk 0:00:31]} 30. Qg3 {[%clk 0:01:42]}  Ra8 {[%clk 0:00:24]} 31. h4 {[%clk 0:01:41]}  g6 {[%clk 0:00:22]} 32. Qe5 {[%clk 0:01:38]}  Rc8 {[%clk 0:00:19]} 33. c3 {[%clk 0:01:29]}  Rc7 {[%clk 0:00:19]} 34. Kc2 {[%clk 0:01:28]}  Ke7 {[%clk 0:00:17]} 35. Kb3 {[%clk 0:01:26]}  Rb7 {[%clk 0:00:15]} 36. h5 {[%clk 0:01:23]}  gxh5 {[%clk 0:00:14]} 37. Qxh5 {[%clk 0:01:24]}  Nc7 {[%clk 0:00:11]} 38. f4 {[%clk 0:01:21]}  Nb5 {[%clk 0:00:11]} 39. f5 {[%clk 0:01:20]}  exf5 {[%clk 0:00:10]} 40. Qxf5 {[%clk 0:01:19]}  Ra7 {[%clk 0:00:09]} 41. Qe5+ {[%clk 0:01:18]}  Kd7 {[%clk 0:00:08]} 42. Qf6 {[%clk 0:01:15]}  Ra3+ {[%clk 0:00:08]} 43. Kb2 {[%clk 0:01:15]}  Rxc3 {[%clk 0:00:08]} 44. Qxf7+ {[%clk 0:01:16]}  Kc8 {[%clk 0:00:08]} 45. Qe8+ {[%clk 0:01:15]}  Kc7 {[%clk 0:00:08]} 46. Qe7+ {[%clk 0:01:14]}  Kc8 {[%clk 0:00:08]} 47. f4 {[%clk 0:01:11]}  Rc4 {[%clk 0:00:07]} 48. Qe6+ {[%clk 0:01:06]}  Kc7 {[%clk 0:00:06]} 49. Qe5+ {[%clk 0:01:05]}  Kd7 {[%clk 0:00:04]} 50. f5 {[%clk 0:01:05]}  Rxb4+ {[%clk 0:00:03]} 51. Ka2 {[%clk 0:01:00]}  Ra4+ {[%clk 0:00:02]} 52. Kb3 {[%clk 0:00:59]}  Rb4+ {[%clk 0:00:02]} 53. Kxb4 {[%clk 0:00:59]} 1-0


[Site "https://www.chess.com"]

[Event "Titled Tuesday Blitz June 07 Late 2022"]
[White "Licznerski, Lukasz"]
[Black "Vajda, Levente"]
[WhiteFideId "1179250"]
[BlackFideId "1203975"]
[WhiteElo "2387"]
[BlackElo "2573"]
[Result "1-0"]
[Round "11"]
[TimeControl "180+1"]
[Date "2022.06.07"]
[WhiteClock "0:00:25"]
[BlackClock "0:00:04"]

1. e4 {[%clk 0:03:00]}  e5 {[%clk 0:02:59]} 2. Nf3 {[%clk 0:03:01]}  Nc6 {[%clk 0:02:59]} 3. Bb5 {[%clk 0:03:01]}  a6 {[%clk 0:02:59]} 4. Bxc6 {[%clk 0:03:01]}  dxc6 {[%clk 0:02:58]} 5. O-O {[%clk 0:03:02]}  f6 {[%clk 0:02:59]} 6. d4 {[%clk 0:03:03]}  exd4 {[%clk 0:03:00]} 7. Nxd4 {[%clk 0:03:03]}  c5 {[%clk 0:02:57]} 8. Nb3 {[%clk 0:03:03]}  Qxd1 {[%clk 0:02:58]} 9. Rxd1 {[%clk 0:03:04]}  Bd6 {[%clk 0:02:42]} 10. Be3 {[%clk 0:03:03]}  b6 {[%clk 0:02:39]} 11. Nc3 {[%clk 0:03:03]}  Be6 {[%clk 0:02:40]} 12. a4 {[%clk 0:03:02]}  Ne7 {[%clk 0:02:24]} 13. a5 {[%clk 0:03:01]}  Bxb3 {[%clk 0:02:24]} 14. cxb3 {[%clk 0:03:01]}  bxa5 {[%clk 0:01:52]} 15. Rxa5 {[%clk 0:02:44]}  Rb8 {[%clk 0:01:51]} 16. Bxc5 {[%clk 0:02:31]}  Nc6 {[%clk 0:01:11]} 17. Rxa6 {[%clk 0:02:24]}  Bxc5 {[%clk 0:01:10]} 18. Rxc6 {[%clk 0:02:24]}  Bd6 {[%clk 0:01:08]} 19. b4 {[%clk 0:02:06]}  O-O {[%clk 0:00:30]} 20. b5 {[%clk 0:01:58]}  Be5 {[%clk 0:00:30]} 21. Kf1 {[%clk 0:01:48]}  Rf7 {[%clk 0:00:22]} 22. g3 {[%clk 0:01:45]}  g5 {[%clk 0:00:21]} 23. Rd5 {[%clk 0:01:36]}  Kg7 {[%clk 0:00:21]} 24. Ke2 {[%clk 0:01:34]}  Re8 {[%clk 0:00:20]} 25. Ke3 {[%clk 0:01:23]}  f5 {[%clk 0:00:16]} 26. f3 {[%clk 0:01:13]}  g4 {[%clk 0:00:16]} 27. f4 {[%clk 0:00:35]}  Bxc3 {[%clk 0:00:16]} 28. bxc3 {[%clk 0:00:35]}  Rxe4+ {[%clk 0:00:17]} 29. Kd3 {[%clk 0:00:36]}  Rfe7 {[%clk 0:00:17]} 30. Rxf5 {[%clk 0:00:35]}  Re3+ {[%clk 0:00:16]} 31. Kc4 {[%clk 0:00:34]}  Re2 {[%clk 0:00:14]} 32. Rg5+ {[%clk 0:00:33]}  Kf7 {[%clk 0:00:14]} 33. Rh5 {[%clk 0:00:32]}  Kg7 {[%clk 0:00:13]} 34. Rh4 {[%clk 0:00:31]}  Kh8 {[%clk 0:00:04]} 35. Rxg4 {[%clk 0:00:25]}  Rg2 {[%clk 0:00:04]} 36. b6 {[%clk 0:00:25]} 1-0


[Site "https://www.chess.com"]

[Event "Titled Tuesday Blitz June 07 Late 2022"]
[White "Manelyuk, Daniil"]
[Black "Florescu, Codrut-Constantin"]
[WhiteFideId "44173920"]
[BlackFideId "1202200"]
[WhiteElo "2209"]
[BlackElo "2191"]
[Result "1-0"]
[Round "11"]
[TimeControl "180+1"]
[Date "2022.06.07"]
[WhiteClock "0:00:54"]
[BlackClock "0:01:02"]

1. e4 {[%clk 0:02:27]}  c5 {[%clk 0:02:59]} 2. Nf3 {[%clk 0:02:27]}  e6 {[%clk 0:02:59]} 3. c4 {[%clk 0:02:26]}  Nc6 {[%clk 0:02:58]} 4. Nc3 {[%clk 0:02:26]}  Nf6 {[%clk 0:02:58]} 5. Be2 {[%clk 0:02:24]}  b6 {[%clk 0:02:58]} 6. O-O {[%clk 0:02:23]}  Bb7 {[%clk 0:02:58]} 7. d4 {[%clk 0:02:19]}  cxd4 {[%clk 0:02:57]} 8. Nxd4 {[%clk 0:02:20]}  Nxd4 {[%clk 0:02:55]} 9. Qxd4 {[%clk 0:02:21]}  Bc5 {[%clk 0:02:54]} 10. Qd3 {[%clk 0:02:21]}  Qb8 {[%clk 0:02:54]} 11. Be3 {[%clk 0:02:15]}  Qe5 {[%clk 0:02:33]} 12. Bxc5 {[%clk 0:02:13]}  bxc5 {[%clk 0:02:32]} 13. f4 {[%clk 0:01:57]}  Qd4+ {[%clk 0:02:29]} 14. Qxd4 {[%clk 0:01:56]}  cxd4 {[%clk 0:02:30]} 15. Nb5 {[%clk 0:01:56]}  Bxe4 {[%clk 0:02:25]} 16. Nc7+ {[%clk 0:01:49]}  Ke7 {[%clk 0:02:25]} 17. Nxa8 {[%clk 0:01:50]}  Rxa8 {[%clk 0:02:24]} 18. Rad1 {[%clk 0:01:49]}  d5 {[%clk 0:02:11]} 19. Rxd4 {[%clk 0:01:47]}  a5 {[%clk 0:02:08]} 20. Rfd1 {[%clk 0:01:46]}  Rb8 {[%clk 0:02:07]} 21. b3 {[%clk 0:01:46]}  a4 {[%clk 0:02:07]} 22. cxd5 {[%clk 0:01:45]}  exd5 {[%clk 0:02:06]} 23. Rxa4 {[%clk 0:01:45]}  h5 {[%clk 0:02:05]} 24. Ra7+ {[%clk 0:01:44]}  Ke6 {[%clk 0:02:04]} 25. Rd4 {[%clk 0:01:43]}  Rc8 {[%clk 0:02:03]} 26. Rd2 {[%clk 0:01:34]}  h4 {[%clk 0:02:01]} 27. Kf2 {[%clk 0:01:32]}  Rc3 {[%clk 0:01:51]} 28. h3 {[%clk 0:01:25]}  g6 {[%clk 0:01:30]} 29. b4 {[%clk 0:01:18]}  Rc1 {[%clk 0:01:20]} 30. b5 {[%clk 0:01:16]}  Rb1 {[%clk 0:01:20]} 31. a4 {[%clk 0:01:11]}  Rb4 {[%clk 0:01:19]} 32. a5 {[%clk 0:01:09]}  Bf5 {[%clk 0:01:15]} 33. Ra6+ {[%clk 0:01:08]}  Ke7 {[%clk 0:01:15]} 34. Rxf6 {[%clk 0:01:08]}  Kxf6 {[%clk 0:01:14]} 35. b6 {[%clk 0:01:06]}  Be4 {[%clk 0:01:12]} 36. a6 {[%clk 0:00:54]}  Rxb6 {[%clk 0:01:11]} 37. a7 {[%clk 0:00:55]}  d4 {[%clk 0:01:11]} 38. Rxd4 {[%clk 0:00:55]}  Ba8 {[%clk 0:01:02]} 39. Rd8 {[%clk 0:00:54]} 1-0


[Site "https://www.chess.com"]

[Event "Titled Tuesday Blitz June 07 Late 2022"]
[White "Martinez Alcantara, Jose Eduardo"]
[Black "Tahbaz, Arash"]
[WhiteFideId "3805662"]
[BlackFideId "12528846"]
[WhiteElo "2703"]
[BlackElo "2389"]
[Result "0-1"]
[Round "11"]
[TimeControl "180+1"]
[Date "2022.06.07"]
[WhiteClock "0:00:05"]
[BlackClock "0:00:15"]

1. e4 {[%clk 0:03:00]}  g6 {[%clk 0:02:57]} 2. d4 {[%clk 0:03:01]}  Bg7 {[%clk 0:02:58]} 3. c3 {[%clk 0:03:01]}  d6 {[%clk 0:02:58]} 4. Bd3 {[%clk 0:03:02]}  Nd7 {[%clk 0:02:59]} 5. Nf3 {[%clk 0:03:03]}  e5 {[%clk 0:02:59]} 6. O-O {[%clk 0:03:03]}  Ngf6 {[%clk 0:03:00]} 7. h3 {[%clk 0:03:04]}  O-O {[%clk 0:03:00]} 8. Nbd2 {[%clk 0:03:04]}  b6 {[%clk 0:03:01]} 9. Re1 {[%clk 0:03:04]}  Bb7 {[%clk 0:03:02]} 10. Nf1 {[%clk 0:03:05]}  Re8 {[%clk 0:03:02]} 11. Ng3 {[%clk 0:03:06]}  d5 {[%clk 0:02:51]} 12. exd5 {[%clk 0:03:00]}  exd4 {[%clk 0:02:44]} 13. Rxe8+ {[%clk 0:02:52]}  Qxe8 {[%clk 0:02:45]} 14. c4 {[%clk 0:02:52]}  Nc5 {[%clk 0:02:44]} 15. Bc2 {[%clk 0:02:24]}  c6 {[%clk 0:02:29]} 16. d6 {[%clk 0:01:59]}  Rd8 {[%clk 0:02:07]} 17. b4 {[%clk 0:01:51]}  Ne6 {[%clk 0:02:05]} 18. c5 {[%clk 0:01:44]}  bxc5 {[%clk 0:02:06]} 19. bxc5 {[%clk 0:01:45]}  Nxc5 {[%clk 0:02:01]} 20. Ba3 {[%clk 0:01:42]}  Nfe4 {[%clk 0:02:01]} 21. Bxe4 {[%clk 0:01:37]}  Nxe4 {[%clk 0:02:02]} 22. Nxe4 {[%clk 0:01:31]}  Qxe4 {[%clk 0:02:02]} 23. Qb3 {[%clk 0:01:25]}  c5 {[%clk 0:02:02]} 24. Re1 {[%clk 0:01:21]}  Qd5 {[%clk 0:01:48]} 25. Qxd5 {[%clk 0:01:18]}  Bxd5 {[%clk 0:01:49]} 26. Bxc5 {[%clk 0:01:19]}  d3 {[%clk 0:01:48]} 27. Re3 {[%clk 0:01:00]}  Bc4 {[%clk 0:01:40]} 28. Nd2 {[%clk 0:00:48]}  Bb5 {[%clk 0:01:41]} 29. a4 {[%clk 0:00:45]}  Bxa4 {[%clk 0:01:41]} 30. Rxd3 {[%clk 0:00:41]}  Bb5 {[%clk 0:01:41]} 31. Rf3 {[%clk 0:00:31]}  a6 {[%clk 0:01:28]} 32. Ne4 {[%clk 0:00:28]}  f5 {[%clk 0:01:23]} 33. Ng5 {[%clk 0:00:26]}  Be5 {[%clk 0:01:22]} 34. Ne6 {[%clk 0:00:22]}  Rd7 {[%clk 0:01:21]} 35. g4 {[%clk 0:00:13]}  Bxd6 {[%clk 0:01:17]} 36. gxf5 {[%clk 0:00:12]}  Bxc5 {[%clk 0:01:03]} 37. Nxc5 {[%clk 0:00:13]}  Rd1+ {[%clk 0:01:01]} 38. Kh2 {[%clk 0:00:13]}  Rd5 {[%clk 0:01:02]} 39. Rc3 {[%clk 0:00:13]}  Rxf5 {[%clk 0:00:59]} 40. Kg3 {[%clk 0:00:14]}  a5 {[%clk 0:00:56]} 41. Nb7 {[%clk 0:00:12]}  a4 {[%clk 0:00:56]} 42. Nd6 {[%clk 0:00:12]}  Rd5 {[%clk 0:00:53]} 43. Rc8+ {[%clk 0:00:12]}  Kg7 {[%clk 0:00:53]} 44. Rc7+ {[%clk 0:00:12]}  Kf6 {[%clk 0:00:49]} 45. Ne4+ {[%clk 0:00:11]}  Ke5 {[%clk 0:00:47]} 46. f3 {[%clk 0:00:12]}  Kd4 {[%clk 0:00:41]} 47. Rxh7 {[%clk 0:00:12]}  Rd7 {[%clk 0:00:41]} 48. Rh8 {[%clk 0:00:12]}  Ra7 {[%clk 0:00:41]} 49. Rd8+ {[%clk 0:00:13]}  Kc4 {[%clk 0:00:36]} 50. Nd6+ {[%clk 0:00:13]}  Kb4 {[%clk 0:00:36]} 51. Rb8 {[%clk 0:00:09]}  Ra5 {[%clk 0:00:36]} 52. Nb7 {[%clk 0:00:10]}  Ra6 {[%clk 0:00:33]} 53. Rd8 {[%clk 0:00:08]}  a3 {[%clk 0:00:33]} 54. Rd1 {[%clk 0:00:03]}  a2 {[%clk 0:00:28]} 55. Ra1 {[%clk 0:00:03]}  Kc3 {[%clk 0:00:23]} 56. Nc5 {[%clk 0:00:04]}  Ra3 {[%clk 0:00:22]} 57. Ne4+ {[%clk 0:00:02]}  Kb2 {[%clk 0:00:22]} 58. Rd1 {[%clk 0:00:03]}  a1=Q {[%clk 0:00:21]} 59. Rxa1 {[%clk 0:00:03]}  Kxa1 {[%clk 0:00:21]} 60. Kf4 {[%clk 0:00:04]}  Bc6 {[%clk 0:00:18]} 61. Ng5 {[%clk 0:00:05]}  Ra5 {[%clk 0:00:17]} 62. h4 {[%clk 0:00:06]}  Rf5+ {[%clk 0:00:18]} 63. Ke3 {[%clk 0:00:06]}  Kb2 {[%clk 0:00:16]} 64. f4 {[%clk 0:00:06]}  Kc3 {[%clk 0:00:16]} 65. Nh3 {[%clk 0:00:06]}  Kc4 {[%clk 0:00:16]} 66. Nf2 {[%clk 0:00:07]}  Kd5 {[%clk 0:00:16]} 67. Ng4 {[%clk 0:00:08]}  Ke6 {[%clk 0:00:15]} 68. Nf2 {[%clk 0:00:06]}  Ra5 {[%clk 0:00:14]} 69. Ng4 {[%clk 0:00:07]}  Ra3+ {[%clk 0:00:14]} 70. Kd4 {[%clk 0:00:07]}  Ra4+ {[%clk 0:00:14]} 71. Ke3 {[%clk 0:00:08]}  Re4+ {[%clk 0:00:15]} 72. Kf3 {[%clk 0:00:08]}  Rb4+ {[%clk 0:00:15]} 73. Ke3 {[%clk 0:00:09]}  Rb3+ {[%clk 0:00:15]} 74. Ke2 {[%clk 0:00:05]}  Kf5 {[%clk 0:00:15]} 75. Ne5 {[%clk 0:00:05]}  Be8 {[%clk 0:00:15]} 76. Nc4 {[%clk 0:00:05]}  Bb5 {[%clk 0:00:15]} 0-1


[Site "https://www.chess.com"]

[Event "Titled Tuesday Blitz June 07 Late 2022"]
[White "Mickiewicz, Piotr"]
[Black "Golubev, Mikhail"]
[WhiteFideId "1114891"]
[BlackFideId "14100983"]
[WhiteElo "2209"]
[BlackElo "2374"]
[Result "0-1"]
[Round "11"]
[TimeControl "180+1"]
[Date "2022.06.07"]
[WhiteClock "0:00:19"]
[BlackClock "0:00:17"]

1. e4 {[%clk 0:03:00]}  c5 {[%clk 0:03:00]} 2. Nf3 {[%clk 0:03:01]}  d6 {[%clk 0:03:00]} 3. Nc3 {[%clk 0:03:00]}  g6 {[%clk 0:02:57]} 4. g3 {[%clk 0:03:00]}  Bg7 {[%clk 0:02:57]} 5. Bg2 {[%clk 0:03:01]}  Nc6 {[%clk 0:02:56]} 6. O-O {[%clk 0:03:01]}  Nf6 {[%clk 0:02:51]} 7. d3 {[%clk 0:03:02]}  O-O {[%clk 0:02:50]} 8. h3 {[%clk 0:03:02]}  Rb8 {[%clk 0:02:50]} 9. Be3 {[%clk 0:03:02]}  b5 {[%clk 0:02:48]} 10. a3 {[%clk 0:03:02]}  a5 {[%clk 0:02:47]} 11. Qd2 {[%clk 0:03:02]}  b4 {[%clk 0:02:47]} 12. axb4 {[%clk 0:03:02]}  axb4 {[%clk 0:02:48]} 13. Ne2 {[%clk 0:03:03]}  Nd7 {[%clk 0:02:44]} 14. d4 {[%clk 0:02:55]}  Nb6 {[%clk 0:02:35]} 15. b3 {[%clk 0:02:53]}  c4 {[%clk 0:02:25]} 16. Bh6 {[%clk 0:02:46]}  d5 {[%clk 0:01:58]} 17. e5 {[%clk 0:02:41]}  Bf5 {[%clk 0:01:52]} 18. Ra2 {[%clk 0:02:36]}  Ra8 {[%clk 0:01:42]} 19. Rfa1 {[%clk 0:02:31]}  Rxa2 {[%clk 0:01:41]} 20. Rxa2 {[%clk 0:02:30]}  Qd7 {[%clk 0:01:40]} 21. g4 {[%clk 0:02:28]}  Be4 {[%clk 0:01:40]} 22. Ng3 {[%clk 0:02:07]}  Bxf3 {[%clk 0:01:36]} 23. Bxf3 {[%clk 0:02:08]}  Bxh6 {[%clk 0:01:32]} 24. Qxh6 {[%clk 0:02:06]}  Nxd4 {[%clk 0:01:32]} 25. Bd1 {[%clk 0:02:02]}  Qc7 {[%clk 0:01:10]} 26. Qe3 {[%clk 0:01:21]}  Nc6 {[%clk 0:01:10]} 27. f4 {[%clk 0:01:18]}  d4 {[%clk 0:01:10]} 28. Qe4 {[%clk 0:01:15]}  Rd8 {[%clk 0:00:50]} 29. Bf3 {[%clk 0:01:13]}  Nd5 {[%clk 0:00:43]} 30. Ra6 {[%clk 0:00:47]}  cxb3 {[%clk 0:00:39]} 31. cxb3 {[%clk 0:00:44]}  d3 {[%clk 0:00:39]} 32. Qc4 {[%clk 0:00:39]}  Ne3 {[%clk 0:00:28]} 33. Rxc6 {[%clk 0:00:32]}  Qa7 {[%clk 0:00:23]} 34. Rc8 {[%clk 0:00:19]}  Nxc4+ {[%clk 0:00:17]} 0-1


[Site "https://www.chess.com"]

[Event "Titled Tuesday Blitz June 07 Late 2022"]
[White "Nazaretyan, Tigran"]
[Black "Wachinger, Guenther"]
[WhiteFideId "24162345"]
[BlackFideId "4604261"]
[WhiteElo "2179"]
[BlackElo "2212"]
[Result "1-0"]
[Round "11"]
[TimeControl "180+1"]
[Date "2022.06.07"]
[WhiteClock "0:01:07"]
[BlackClock "0:01:04"]

1. d4 {[%clk 0:02:57]}  d5 {[%clk 0:02:59]} 2. c4 {[%clk 0:02:56]}  e6 {[%clk 0:02:59]} 3. Nf3 {[%clk 0:02:56]}  c6 {[%clk 0:02:57]} 4. Nbd2 {[%clk 0:02:53]}  Nf6 {[%clk 0:02:54]} 5. g3 {[%clk 0:02:51]}  Be7 {[%clk 0:02:54]} 6. Bg2 {[%clk 0:02:51]}  O-O {[%clk 0:02:55]} 7. O-O {[%clk 0:02:52]}  b6 {[%clk 0:02:56]} 8. Qc2 {[%clk 0:02:49]}  Bb7 {[%clk 0:02:56]} 9. e4 {[%clk 0:02:49]}  dxc4 {[%clk 0:02:56]} 10. Nxc4 {[%clk 0:02:47]}  c5 {[%clk 0:02:57]} 11. e5 {[%clk 0:02:22]}  Nd5 {[%clk 0:02:52]} 12. dxc5 {[%clk 0:02:21]}  bxc5 {[%clk 0:02:50]} 13. Rd1 {[%clk 0:02:16]}  Nc6 {[%clk 0:02:49]} 14. a3 {[%clk 0:02:11]}  Rc8 {[%clk 0:02:44]} 15. h4 {[%clk 0:02:10]}  h6 {[%clk 0:02:43]} 16. b3 {[%clk 0:02:01]}  Nd4 {[%clk 0:02:33]} 17. Nxd4 {[%clk 0:01:59]}  cxd4 {[%clk 0:02:33]} 18. Rxd4 {[%clk 0:01:59]}  Qc7 {[%clk 0:02:28]} 19. Rg4 {[%clk 0:01:56]}  Kh8 {[%clk 0:02:25]} 20. Bxh6 {[%clk 0:01:49]}  gxh6 {[%clk 0:02:23]} 21. Qd2 {[%clk 0:01:49]}  Bg5 {[%clk 0:02:00]} 22. hxg5 {[%clk 0:01:49]}  h5 {[%clk 0:02:00]} 23. g6 {[%clk 0:01:43]}  fxg6 {[%clk 0:01:55]} 24. Rxg6 {[%clk 0:01:43]}  Rf7 {[%clk 0:01:54]} 25. Rxe6 {[%clk 0:01:41]}  Rcf8 {[%clk 0:01:52]} 26. Bxd5 {[%clk 0:01:29]}  Bxd5 {[%clk 0:01:25]} 27. Qxd5 {[%clk 0:01:27]}  Rxf2 {[%clk 0:01:22]} 28. Rh6+ {[%clk 0:01:16]}  Kg7 {[%clk 0:01:19]} 29. Rxh5 {[%clk 0:01:12]}  Qe7 {[%clk 0:01:04]} 30. Qd6 {[%clk 0:01:07]} 1-0


[Site "https://www.chess.com"]

[Event "Titled Tuesday Blitz June 07 Late 2022"]
[White "Rohl Montes, Juan Armando"]
[Black "Yurasova, Daria"]
[WhiteFideId "3900487"]
[BlackFideId "34146919"]
[WhiteElo "2359"]
[BlackElo "2021"]
[Result "1-0"]
[Round "11"]
[TimeControl "180+1"]
[Date "2022.06.07"]
[WhiteClock "0:01:15"]
[BlackClock "0:01:05"]

1. e4 {[%clk 0:02:59]}  e5 {[%clk 0:02:59]} 2. Nc3 {[%clk 0:02:59]}  Nc6 {[%clk 0:02:59]} 3. Nf3 {[%clk 0:03:00]}  Nf6 {[%clk 0:02:59]} 4. d4 {[%clk 0:03:00]}  exd4 {[%clk 0:02:59]} 5. Nxd4 {[%clk 0:03:01]}  Bb4 {[%clk 0:02:56]} 6. Nxc6 {[%clk 0:03:02]}  bxc6 {[%clk 0:02:55]} 7. Bd3 {[%clk 0:03:02]}  d5 {[%clk 0:02:55]} 8. exd5 {[%clk 0:03:03]}  cxd5 {[%clk 0:02:56]} 9. O-O {[%clk 0:03:03]}  O-O {[%clk 0:02:57]} 10. h3 {[%clk 0:03:04]}  Be6 {[%clk 0:02:56]} 11. Qf3 {[%clk 0:03:04]}  Be7 {[%clk 0:02:56]} 12. Bf4 {[%clk 0:03:01]}  c6 {[%clk 0:02:55]} 13. Rad1 {[%clk 0:02:59]}  Qb6 {[%clk 0:02:54]} 14. b3 {[%clk 0:02:59]}  Rfe8 {[%clk 0:02:54]} 15. Na4 {[%clk 0:02:56]}  Qb7 {[%clk 0:02:51]} 16. Rfe1 {[%clk 0:02:53]}  Rad8 {[%clk 0:02:47]} 17. Bd2 {[%clk 0:02:45]}  c5 {[%clk 0:02:41]} 18. Ba5 {[%clk 0:02:41]}  Rc8 {[%clk 0:02:39]} 19. Bc3 {[%clk 0:02:36]}  Qd7 {[%clk 0:02:34]} 20. Ba6 {[%clk 0:02:31]}  Rc7 {[%clk 0:02:23]} 21. Be5 {[%clk 0:02:31]}  Rcc8 {[%clk 0:02:08]} 22. Bxc8 {[%clk 0:02:31]}  Rxc8 {[%clk 0:02:09]} 23. c4 {[%clk 0:02:15]}  d4 {[%clk 0:02:06]} 24. Nb2 {[%clk 0:02:15]}  a5 {[%clk 0:02:03]} 25. Bf4 {[%clk 0:02:10]}  Bf8 {[%clk 0:01:58]} 26. Na4 {[%clk 0:01:59]}  Bf5 {[%clk 0:01:46]} 27. Nb6 {[%clk 0:01:59]}  Qc6 {[%clk 0:01:44]} 28. Nxc8 {[%clk 0:01:58]}  Qxc8 {[%clk 0:01:45]} 29. Re5 {[%clk 0:01:54]}  Bg6 {[%clk 0:01:42]} 30. Bg5 {[%clk 0:01:48]}  Nd7 {[%clk 0:01:41]} 31. Ree1 {[%clk 0:01:46]}  h6 {[%clk 0:01:39]} 32. Be7 {[%clk 0:01:46]}  Bxe7 {[%clk 0:01:39]} 33. Rxe7 {[%clk 0:01:47]}  Nf6 {[%clk 0:01:39]} 34. Qb7 {[%clk 0:01:44]}  Qf5 {[%clk 0:01:38]} 35. Qa8+ {[%clk 0:01:37]}  Kh7 {[%clk 0:01:38]} 36. Qxa5 {[%clk 0:01:37]}  d3 {[%clk 0:01:30]} 37. Qd2 {[%clk 0:01:33]}  Ne4 {[%clk 0:01:26]} 38. Rxe4 {[%clk 0:01:28]}  Qxe4 {[%clk 0:01:25]} 39. Qe3 {[%clk 0:01:29]}  Qa8 {[%clk 0:01:24]} 40. Rxd3 {[%clk 0:01:25]}  Bxd3 {[%clk 0:01:15]} 41. Qxd3+ {[%clk 0:01:26]}  g6 {[%clk 0:01:15]} 42. Qd5 {[%clk 0:01:24]}  Qxa2 {[%clk 0:01:13]} 43. Qxf7+ {[%clk 0:01:24]}  Kh8 {[%clk 0:01:13]} 44. Qf8+ {[%clk 0:01:21]}  Kh7 {[%clk 0:01:13]} 45. Qxc5 {[%clk 0:01:21]}  Qxb3 {[%clk 0:01:14]} 46. Qd4 {[%clk 0:01:17]}  Qb1+ {[%clk 0:01:12]} 47. Kh2 {[%clk 0:01:17]}  Qb8+ {[%clk 0:01:13]} 48. g3 {[%clk 0:01:17]}  Qc7 {[%clk 0:01:08]} 49. c5 {[%clk 0:01:16]}  Qf7 {[%clk 0:01:05]} 50. c6 {[%clk 0:01:15]} 1-0


[Site "https://www.chess.com"]